bitfinex-derivatives/quotes_BNBF0:USTF0_20241225
["timestamp","ask_amount","ask_price","bid_price","bid_amount"]
[1735164329542,0.28601664,699.26,697.32,0.28681236]
[1735164337747,0.26313781,699.25,697.32,0.28681236]
[1735164338856,0.26313781,699.25,697.36,1.28407258]
[1735164339552,0.26313781,699.25,697.38,1.57086027]
[1735164339749,0.26313813,699.24,697.4,0.28677946]
[1735164340052,0.28602482,699.24,697.4,0.28677946]
[1735164340651,0.28602482,699.24,697.4,1.57085204]
[1735164341953,0.28602482,699.24,697.4,0.28677946]
[1735164362566,0.28602482,699.24,697.54,1.28407258]
[1735164363262,0.28602482,699.24,697.4,0.28677946]
[1735164371675,0.28602482,699.24,697.42,1.28407258]
[1735164371876,0.28602482,699.24,697.44,0.28676301]
[1735164372579,0.28602482,699.24,697.51,1.28407258]
[1735164372779,0.28602482,699.24,697.53,0.28672601]
[1735164373376,0.28602482,699.24,697.56,1.28407258]
[1735164373578,0.28602482,699.24,697.58,0.28670546]
[1735164374681,0.28602482,699.24,697.59,1.28407258]
[1735164374978,0.28602482,699.24,697.6,0.28669724]
[1735164376676,0.28602482,699.24,697.61,1.28407258]
[1735164376881,0.28602482,699.24,697.62,0.28668902]
[1735164377080,0.28602482,699.24,697.62,4.2193224]
[1735164377381,0.28602482,699.24,697.63,2.57731472]
[1735164377581,0.28602482,699.24,697.62,1.5707616]
[1735164378480,0.28602482,699.24,697.63,0.28668491]
[1735164389200,0.26314514,699.23,697.63,0.28668491]
[1735164389498,0.286033,699.22,697.63,0.28668491]
[1735164428334,0.286033,699.22,697.73,1.28407258]
[1735164428530,0.286033,699.22,697.74,0.28663972]
[1735164429135,0.286033,699.22,697.75,1.28407258]
[1735164429334,0.286033,699.22,697.76,0.2866315]
[1735164429930,0.286033,699.22,697.76,1.57070408]
[1735164430933,0.286033,699.22,697.77,1.28407258]
[1735164431136,0.286033,699.22,697.78,0.28662329]
[1735164432432,0.286033,699.22,697.78,1.64368615]
[1735164432634,0.286033,699.22,697.83,1.28407258]
[1735164432831,0.286033,699.22,697.83,1.57067533]
[1735164433333,0.286033,699.22,697.84,1.28407258]
[1735164434137,0.286033,699.22,697.85,1.28407258]
[1735164434831,0.286033,699.22,697.84,1.28407258]
[1735164436236,0.286033,699.22,697.84,2.64113544]
[1735164436436,0.286033,699.22,697.85,1.28407258]
[1735164438643,0.286033,699.22,697.86,1.28407258]
[1735164440143,0.286033,699.22,697.83,0.28660275]
[1735164440144,0.286033,699.22,697.84,1.28407258]
[1735164440943,0.286033,699.22,697.86,1.28407258]
[1735164441539,0.286033,699.22,697.85,1.28407258]
[1735164446243,0.286033,699.22,697.83,0.28660275]
[1735164475265,0.26313073,699.21,697.83,0.28660275]
[1735164475465,0.28604118,699.2,697.83,0.28660275]
[1735164480876,0.26312791,699.19,697.83,0.28660275]
[1735164481176,0.28604937,699.18,697.83,0.28660275]
[1735164481370,0.26312791,699.17,697.83,0.28660275]
[1735164481577,0.28605755,699.16,697.83,0.28660275]
[1735164490778,0.26312899,699.15,697.83,0.28660275]
[1735164490983,0.28606573,699.14,697.83,0.28660275]
[1735164564941,0.28606573,699.14,697.02,1.28407258]
[1735164565144,0.28606573,699.14,697.04,0.28692757]
[1735164585963,0.28606573,699.14,697.2,1.28407258]
[1735164586767,0.28606573,699.14,697.21,1.28407258]
[1735164588467,0.28606573,699.14,697.18,1.28407258]
[1735164589469,0.28606573,699.14,697.19,1.28407258]
[1735164589663,0.28606573,699.14,697.21,0.28685761]
[1735164600283,0.28606573,699.14,697.21,1.57093019]
[1735164600979,0.28606573,699.14,697.22,1.28407258]
[1735164601287,0.28606573,699.14,697.24,0.28684527]
[1735164602478,0.28606573,699.14,697.25,1.28407258]
[1735164602679,0.28606573,699.14,697.27,0.28683293]
[1735164603084,0.28606573,699.14,697.27,1.57090551]
[1735164603482,0.28606573,699.14,697.27,5.36889099]
[1735164603685,0.28606573,699.14,697.28,1.35779668]
[1735164603886,0.28606573,699.14,697.3,0.28682059]
[1735164604282,0.28606573,699.14,697.34,1.28407258]
[1735164604483,0.28606573,699.14,697.36,0.28679591]
[1735164610790,0.28606573,699.14,697.36,1.57086849]
[1735164611693,0.28606573,699.14,697.36,0.28679591]
[1735164633605,0.26326251,699.13,697.36,0.28679591]
[1735164634007,0.28607801,699.11,697.36,0.28679591]
[1735164635304,0.26325885,699.1,697.36,0.28679591]
[1735164635508,0.28609029,699.08,697.36,0.28679591]
[1735164637209,0.26325718,699.07,697.36,0.28679591]
[1735164637409,0.28610256,699.05,697.36,0.28679591]
[1735164644610,0.26326523,699.04,697.36,0.28679591]
[1735164644810,0.28610256,699.05,697.36,0.28679591]
[1735164646215,0.26327515,699.04,697.36,0.28679591]
[1735164646409,0.28611484,699.02,697.36,0.28679591]
[1735164646614,0.26327515,699.01,697.36,0.28679591]
[1735164646812,0.28612712,698.99,697.36,0.28679591]
[1735164648011,0.2632784,698.98,697.36,0.28679591]
[1735164648312,0.2861394,698.96,697.36,0.28679591]
[1735164648515,0.2632784,698.95,697.36,0.28679591]
[1735164648716,0.28615168,698.93,697.36,0.28679591]
[1735164648917,0.2632784,698.92,697.36,0.28679591]
[1735164649118,0.28616397,698.9,697.36,0.28679591]
[1735164654820,0.26328417,698.89,697.36,0.28679591]
[1735164655018,0.28617625,698.87,697.36,0.28679591]
[1735164655221,0.26328417,698.86,697.36,0.28679591]
[1735164655423,0.28618854,698.84,697.36,0.28679591]
[1735164655623,0.26328417,698.83,697.36,0.28679591]
[1735164655825,0.28619673,698.82,697.36,0.28679591]
[1735164659328,0.26334396,698.81,697.36,0.28679591]
[1735164660928,0.26338267,698.8,697.36,0.28679591]
[1735164661128,0.26338267,698.79,697.36,0.28679591]
[1735164661330,0.26338267,698.78,697.36,0.28679591]
[1735164661531,0.26338267,698.77,697.36,0.28679591]
[1735164661828,0.26338267,698.76,697.36,0.28679591]
[1735164662029,0.26338267,698.75,697.36,0.28679591]
[1735164662225,0.28619673,698.82,697.36,0.28679591]
[1735164662530,0.26336559,698.81,697.36,0.28679591]
[1735164662731,0.28619673,698.82,697.36,0.28679591]
[1735164667433,0.26336791,698.81,697.36,0.28679591]
[1735164667934,0.28619673,698.82,697.36,0.28679591]
[1735164668635,0.26336702,698.81,697.36,0.28679591]
[1735164668836,0.28620901,698.79,697.36,0.28679591]
[1735164669031,0.26336303,698.78,697.36,0.28679591]
[1735164669231,0.2862213,698.76,697.36,0.28679591]
[1735164670537,0.26337104,698.75,697.36,0.28679591]
[1735164670735,0.2862213,698.76,697.36,0.28679591]
[1735164671237,0.26336479,698.75,697.36,0.28679591]
[1735164671439,0.28623359,698.73,697.36,0.28679591]
[1735164671839,0.26337729,698.72,697.36,0.28679591]
[1735164672333,0.28623359,698.73,697.36,0.28679591]
[1735164672531,0.26337328,698.72,697.36,0.28679591]
[1735164673938,0.26337328,698.72,696.5,2.68545945]
[1735164674138,0.26337328,698.72,696.7,1.28407258]
[1735164674438,0.28623359,698.73,696.72,0.28705936]
[1735164674640,0.26338041,698.72,696.72,0.28705936]
[1735164674841,0.28624588,698.7,696.72,0.28705936]
[1735164675041,0.26338041,698.69,696.72,0.28705936]
[1735164675242,0.28625817,698.67,696.72,0.28705936]
[1735164675435,0.26338041,698.66,696.72,0.28705936]
[1735164675635,0.28627046,698.64,696.72,0.28705936]
[1735164675839,0.26338041,698.63,696.72,0.28705936]
[1735164676036,0.28628276,698.61,696.72,0.28705936]
[1735164679140,0.26337199,698.6,696.72,0.28705936]
[1735164679345,0.28629095,698.59,696.72,0.28705936]
[1735164680644,0.26337418,698.58,696.72,0.28705936]
[1735164681042,0.28629915,698.57,696.72,0.28705936]
[1735164681843,0.28629915,698.57,696.8,1.28407258]
[1735164682047,0.28629915,698.57,696.81,0.28702228]
[1735164683545,0.28629915,698.57,696.82,1.28407258]
[1735164683941,0.28629915,698.57,696.84,0.28700993]
[1735164685648,0.26336434,698.56,696.84,0.28700993]
[1735164685850,0.28630735,698.55,696.84,0.28700993]
[1735164686050,0.28630735,698.55,696.84,1.57108251]
[1735164686848,0.28630735,698.55,696.9,1.28407258]
[1735164687044,0.28630735,698.55,696.91,0.2869811]
[1735164688551,0.28630735,698.55,696.91,1.57105368]
[1735164689546,0.28630735,698.55,696.91,2.92518331]
[1735164689750,0.28630735,698.55,696.93,1.28407258]
[1735164690252,0.28630735,698.55,696.96,1.28407258]
[1735164690646,0.28630735,698.55,696.97,0.28695639]
[1735164691051,0.28630735,698.55,696.97,1.57102897]
[1735164691752,0.28630735,698.55,697.0,1.28407258]
[1735164692052,0.28630735,698.55,697.01,0.28693992]
[1735164692252,0.26336998,698.54,697.01,0.28693992]
[1735164692550,0.28631554,698.53,697.01,0.28693992]
[1735164692751,0.28631554,698.53,697.03,1.28407258]
[1735164693350,0.28631554,698.53,697.05,1.28407258]
[1735164694151,0.26336873,698.52,697.07,1.28407258]
[1735164694349,0.28631554,698.53,697.07,1.28407258]
[1735164694546,0.28632374,698.51,697.07,1.28407258]
[1735164694747,0.28632374,698.51,697.1,1.28407258]
[1735164695347,0.28632374,698.51,697.06,1.28407258]
[1735164697555,0.28632374,698.51,697.08,1.28407258]
[1735164698253,0.28632374,698.51,697.01,0.28693992]
[1735164698254,0.28632374,698.51,697.07,1.28407258]
[1735164699455,0.28632374,698.51,697.08,1.28407258]
[1735164700156,0.28632374,698.51,697.01,0.28693992]
[1735164736482,0.28632374,698.51,697.01,1.57248166]
[1735164737379,0.28632374,698.51,697.01,0.28693992]
[1735164738982,0.28632374,698.51,697.01,2.9860127]
[1735164739186,0.28632374,698.51,697.02,1.36199293]
[1735164739387,0.28632374,698.51,697.02,3.80367589]
[1735164739586,0.28632374,698.51,697.04,0.28692757]
[1735164739987,0.28632374,698.51,697.04,2.72861053]
[1735164740290,0.28632374,698.51,697.05,2.69865729]
[1735164740487,0.28632374,698.51,697.07,0.28691523]
[1735164740984,0.28632374,698.51,697.07,1.64890816]
[1735164741183,0.28632374,698.51,697.07,4.09059112]
[1735164741383,0.28632374,698.51,697.08,1.36199293]
[1735164741587,0.28632374,698.51,697.08,3.80367589]
[1735164741883,0.28632374,698.51,697.09,1.36199293]
[1735164742585,0.28632374,698.51,697.11,0.28689876]
[1735164742986,0.28632374,698.51,697.11,5.42636379]
[1735164743187,0.28632374,698.51,697.12,2.69782383]
[1735164743384,0.28632374,698.51,697.14,0.28688642]
[1735164743784,0.28632374,698.51,697.14,2.98471025]
[1735164743989,0.28632374,698.51,697.15,3.80367589]
[1735164744293,0.28632374,698.51,697.16,2.98443811]
[1735164744490,0.28632374,698.51,697.17,2.98443399]
[1735164744784,0.28632374,698.51,697.18,5.42611284]
[1735164744984,0.28632374,698.51,697.19,5.42610872]
[1735164745188,0.28632374,698.51,697.2,5.42610461]
[1735164745384,0.28632374,698.51,697.21,4.0905335]
[1735164745588,0.28632374,698.51,697.22,1.36199293]
[1735164745786,0.28632374,698.51,697.22,3.80367589]
[1735164745983,0.28632374,698.51,697.23,0.28684938]
[1735164791836,0.27632418,698.51,697.23,0.28684938]
[1735164829260,0.26345025,698.5,697.23,0.28684938]
[1735164829475,0.26345025,698.5,696.37,1.28554174]
[1735164829663,0.26345025,698.5,696.39,0.28719539]
[1735164830568,0.26347816,698.49,696.39,0.28719539]
[1735164830767,0.26347816,698.48,696.39,0.28719539]
[1735164830961,0.26347816,698.47,696.39,0.28719539]
[1735164831165,0.26347816,698.46,696.39,0.28719539]
[1735164831367,0.26347816,698.45,696.39,0.28719539]
[1735164831667,0.26347816,698.44,696.39,0.28719539]
[1735164831868,0.26347816,698.43,696.39,0.28719539]
[1735164832068,0.26347816,698.42,696.39,0.28719539]
[1735164832267,0.26347816,698.41,696.39,0.28719539]
[1735164832468,0.26347816,698.4,696.39,0.28719539]
[1735164832668,0.26347816,698.39,696.39,0.28719539]
[1735164832868,0.26347816,698.38,696.39,0.28719539]
[1735164833069,0.27632418,698.51,696.39,0.28719539]
[1735164833270,0.26352862,698.5,696.39,0.28719539]
[1735164835769,0.27632418,698.51,696.39,0.28719539]
[1735164835971,0.26354396,698.5,696.39,0.28719539]
[1735164836468,0.26354396,698.49,696.39,0.28719539]
[1735164836672,0.27632418,698.51,696.39,0.28719539]
[1735164836867,0.26353807,698.5,696.39,0.28719539]
[1735164838169,0.26353807,698.49,696.39,0.28719539]
[1735164838369,0.26353807,698.48,696.39,0.28719539]
[1735164838566,0.27632418,698.51,696.39,0.28719539]
[1735164838773,0.26356033,698.5,696.39,0.28719539]
[1735164838967,0.26356033,698.49,696.39,0.28719539]
[1735164839173,0.26356033,698.48,696.39,0.28719539]
[1735164839474,0.26356033,698.47,696.39,0.28719539]
[1735164839674,0.26356033,698.46,696.39,0.28719539]
[1735164839874,0.26356033,698.45,696.39,0.28719539]
[1735164840075,0.26356033,698.44,696.39,0.28719539]
[1735164840275,0.26356033,698.43,696.39,0.28719539]
[1735164840575,0.26356033,698.42,696.39,0.28719539]
[1735164840775,0.26356033,698.41,696.39,0.28719539]
[1735164840976,0.26355728,698.4,696.39,0.28719539]
[1735164841178,0.26355728,698.39,696.39,0.28719539]
[1735164841372,0.26355728,698.38,696.39,0.28719539]
[1735164841572,0.26355728,698.37,696.39,0.28719539]
[1735164841774,0.26355728,698.36,696.39,0.28719539]
[1735164842077,0.26355728,698.35,696.39,0.28719539]
[1735164842376,0.26355728,698.34,696.39,0.28719539]
[1735164842574,0.26355728,698.33,696.39,0.28719539]
[1735164842783,0.26355728,698.32,696.39,0.28719539]
[1735164843077,0.26355728,698.31,696.39,0.28719539]
[1735164843272,0.27632418,698.51,696.39,0.28719539]
[1735164843273,0.26354847,698.3,696.39,0.28719539]
[1735164843474,0.26354847,698.29,696.39,0.28719539]
[1735164843674,0.26354847,698.5,696.39,0.28719539]
[1735164843980,0.26354847,698.49,696.39,0.28719539]
[1735164844182,0.26354847,698.48,696.39,0.28719539]
[1735164844382,0.26354847,698.47,696.39,0.28719539]
[1735164844578,0.26354847,698.46,696.39,0.28719539]
[1735164844778,0.26354847,698.45,696.39,0.28719539]
[1735164844976,0.26354847,698.44,696.39,0.28719539]
[1735164845180,0.26354847,698.43,696.39,0.28719539]
[1735164845377,0.26354847,698.42,696.39,0.28719539]
[1735164845579,0.26354847,698.41,696.39,0.28719539]
[1735164845782,0.26354847,698.4,696.39,0.28719539]
[1735164846085,0.26355775,698.39,696.39,0.28719539]
[1735164846384,0.26355775,698.38,696.39,0.28719539]
[1735164846683,0.26355775,698.37,696.39,0.28719539]
[1735164846878,0.26355775,698.36,696.39,0.28719539]
[1735164847083,0.26355775,698.35,696.39,0.28719539]
[1735164847384,0.26356843,698.34,696.39,0.28719539]
[1735164847683,0.27632418,698.51,696.39,0.28719539]
[1735164847684,0.26356843,698.33,696.39,0.28719539]
[1735164847979,0.26356843,698.32,696.39,0.28719539]
[1735164848186,0.26356843,698.31,696.39,0.28719539]
[1735164848388,0.26356843,698.3,696.39,0.28719539]
[1735164848582,0.26356843,698.29,696.39,0.28719539]
[1735164848784,0.26364257,698.28,696.39,0.28719539]
[1735164848982,0.26364257,698.27,696.39,0.28719539]
[1735164849289,0.26364257,698.26,696.39,0.28719539]
[1735164849486,0.26364257,698.25,696.39,0.28719539]
[1735164849684,0.26364257,698.24,696.39,0.28719539]
[1735164849988,0.26364257,698.23,696.39,0.28719539]
[1735164850287,0.26364257,698.22,696.39,0.28719539]
[1735164850484,0.26364257,698.48,696.39,0.28719539]
[1735164850684,0.26364257,698.47,696.39,0.28719539]
[1735164850885,0.26364257,698.46,696.39,0.28719539]
[1735164851088,0.26364257,698.45,695.3,1.28554174]
[1735164851288,0.26364257,698.44,695.3,1.28554174]
[1735164851491,0.27632418,698.51,695.2,1.34894575]
[1735164851492,1.07060497,698.47,695.2,1.34894575]
[1735164851788,0.26371823,698.46,695.36,0.2876208]
[1735164851988,0.26371823,698.45,695.36,0.2876208]
[1735164852190,0.26371823,698.44,695.36,0.2876208]
[1735164852488,0.26373772,698.43,695.36,0.2876208]
[1735164852692,1.07060497,698.45,695.36,0.2876208]
[1735164852693,0.26373772,698.42,695.36,0.2876208]
[1735164852884,0.26373772,698.41,695.36,0.2876208]
[1735164853089,0.26373772,698.4,695.36,0.2876208]
[1735164853287,1.07060497,698.27,695.36,0.2876208]
[1735164853486,0.26373772,698.26,695.36,0.2876208]
[1735164853690,0.26373772,698.25,695.36,0.2876208]
[1735164853887,0.26373772,698.24,695.36,0.2876208]
[1735164854087,0.26373772,698.23,695.36,0.2876208]
[1735164854389,0.26373772,698.22,695.36,0.2876208]
[1735164854588,0.26373772,698.21,695.36,0.2876208]
[1735164854891,0.26373772,698.2,695.36,0.2876208]
[1735164855089,0.26373772,698.19,695.36,0.2876208]
[1735164855390,0.26373772,698.18,695.36,0.2876208]
[1735164855591,0.26373772,698.17,695.36,0.2876208]
[1735164855791,0.26373772,698.16,695.36,0.2876208]
[1735164855992,0.26373772,698.15,695.36,0.2876208]
[1735164856190,0.26373772,698.14,695.36,0.2876208]
[1735164856490,0.26373772,698.13,695.36,0.2876208]
[1735164856787,0.26373772,698.12,695.36,0.2876208]
[1735164856989,0.26373772,698.11,695.36,0.2876208]
[1735164857190,0.26373667,698.1,695.36,0.2876208]
[1735164857392,0.28654116,697.98,695.36,0.2876208]
[1735164857690,0.26373667,697.97,695.36,0.2876208]
[1735164857891,0.28658632,697.87,695.36,0.2876208]
[1735164858092,0.26373667,697.86,695.36,0.2876208]
[1735164858292,0.28659864,697.84,695.36,0.2876208]
[1735164863493,0.26371461,697.83,695.36,0.2876208]
[1735164863696,0.28661096,697.81,695.36,0.2876208]
[1735164863897,0.26371461,697.8,695.36,0.2876208]
[1735164864091,0.28662329,697.78,695.36,0.2876208]
[1735164864295,0.26371461,697.77,695.36,0.2876208]
[1735164864491,0.28663561,697.75,695.36,0.2876208]
[1735164864694,0.26371461,697.74,695.36,0.2876208]
[1735164864891,0.28664793,697.72,695.36,0.2876208]
[1735164865095,0.26371461,697.71,695.36,0.2876208]
[1735164865294,0.28666026,697.69,695.36,0.2876208]
[1735164865697,0.26371287,697.68,695.36,0.2876208]
[1735164865897,0.28667259,697.66,695.36,0.2876208]
[1735164866499,0.26370513,697.65,695.36,0.2876208]
[1735164866702,0.2866808,697.64,695.36,0.2876208]
[1735164866895,0.26370513,697.63,695.36,0.2876208]
[1735164867199,0.28668902,697.62,695.36,0.2876208]
[1735164867402,0.26370513,697.61,695.36,0.2876208]
[1735164867602,0.28669724,697.6,695.36,0.2876208]
[1735164867899,0.26370513,697.59,695.36,0.2876208]
[1735164868093,0.28670546,697.58,695.36,0.2876208]
[1735164869612,0.2637191,697.57,695.36,0.2876208]
[1735164869799,0.28671368,697.56,695.36,0.2876208]
[1735164875104,0.28671368,697.56,695.36,5.36654254]
[1735164875306,0.28671368,697.56,695.57,1.28554174]
[1735164876108,0.28671368,697.56,695.59,0.28752569]
[1735164876314,0.28671368,697.56,695.63,1.28554174]
[1735164876512,0.28671368,697.56,695.65,0.28750089]
[1735164877215,0.28671368,697.56,695.71,1.28554174]
[1735164877411,0.28671368,697.56,695.73,0.28746783]
[1735164878111,0.28671368,697.56,695.76,1.28554174]
[1735164878315,0.28671368,697.56,695.78,0.28744718]
[1735164879016,0.28671368,697.56,695.82,1.28554174]
[1735164879217,0.28671368,697.56,695.84,0.28742239]
[1735164879915,0.28671368,697.56,695.84,1.57296413]
[1735164880715,0.28671368,697.56,695.86,1.28554174]
[1735164880916,0.28671368,697.56,695.88,0.28740587]
[1735164881515,0.28671368,697.56,695.9,1.28554174]
[1735164881713,0.28671368,697.56,695.92,0.28738935]
[1735164882720,0.28671368,697.56,695.92,1.57293109]
[1735164883116,0.28671368,697.56,695.93,1.28554174]
[1735164883315,0.28671368,697.56,695.95,0.28737696]
[1735164884519,0.28671368,697.56,696.02,1.28554174]
[1735164884719,0.28671368,697.56,696.04,0.2873398]
[1735164885512,0.28671368,697.56,696.04,1.57288154]
[1735164886619,0.28671368,697.56,696.04,0.2873398]
[1735164887621,0.28671368,697.56,696.04,2.91857003]
[1735164887829,0.28671368,697.56,696.05,2.42366891]
[1735164888022,0.28671368,697.56,696.07,0.28732742]
[1735164888420,1.07060497,698.35,696.07,0.28732742]
[1735164888621,0.26356033,698.34,696.07,1.57286916]
[1735164888817,0.26356033,698.33,696.07,1.57286916]
[1735164889022,0.28640575,698.31,696.07,1.57286916]
[1735164889222,0.26356033,698.3,696.07,1.57286916]
[1735164889524,0.28641805,698.28,696.07,0.28732742]
[1735164889722,0.26356033,698.27,696.07,0.28732742]
[1735164890720,0.28643036,698.25,696.07,0.28732742]
[1735164890917,0.26355475,698.24,696.07,0.28732742]
[1735164891118,0.28644266,698.22,696.07,0.28732742]
[1735164891321,0.26355475,698.21,696.07,0.28732742]
[1735164891918,0.26355475,698.21,696.07,1.64009388]
[1735164892121,0.26355475,698.21,696.08,1.35276646]
[1735164892319,0.28645497,698.19,696.07,0.28732742]
[1735164892521,0.26355475,698.18,696.07,0.28732742]
[1735164892718,0.28646728,698.16,696.07,0.28732742]
[1735164896829,0.28646728,698.16,696.07,2.71951025]
[1735164897126,0.28646728,698.16,696.08,1.35276646]
[1735164897330,0.28646728,698.16,696.1,0.28731504]
[1735164898029,0.28646728,698.16,696.1,5.40532316]
[1735164898223,0.28646728,698.16,696.11,2.68582529]
[1735164898428,0.28646728,698.16,696.21,0.28726964]
[1735164900429,0.28646728,698.16,696.21,1.6400361]
[1735164900634,0.28646728,698.16,696.21,4.07221893]
[1735164900835,0.28646728,698.16,696.21,0.28726964]
[1735164905634,0.28646728,698.16,696.21,2.71524955]
[1735164905833,0.28646728,698.16,696.22,1.35355491]
[1735164906037,0.28646728,698.16,696.21,0.28726964]
[1735164906233,0.28646728,698.16,696.22,2.42797991]
[1735164906433,0.28646728,698.16,696.23,1.35355491]
[1735164906638,0.28646728,698.16,696.22,1.35355491]
[1735164907232,0.28646728,698.16,696.22,3.78068544]
[1735164907434,0.28646728,698.16,696.23,2.68267505]
[1735164907935,0.28646728,698.16,696.28,1.28094218]
[1735164908845,0.28646728,698.16,696.4,1.28094218]
[1735164909937,0.28646728,698.16,696.43,1.28094218]
[1735164910736,0.28646728,698.16,696.49,1.28094218]
[1735164911742,0.28646728,698.16,696.44,1.28094218]
[1735164912044,0.28646728,698.16,696.44,6.38240351]
[1735164912243,0.28646728,698.16,696.45,2.6761102]
[1735164912443,1.06536725,699.08,696.45,5.10146133]
[1735164912644,0.28613531,698.97,696.46,2.6761102]
[1735164912837,0.26333716,698.96,696.46,2.6761102]
[1735164913038,0.26333716,698.95,696.47,2.42535113]
[1735164913240,0.28615168,698.93,696.59,0.28711293]
[1735164913440,0.26333716,698.92,696.59,0.28711293]
[1735164914643,0.28616397,698.9,696.59,0.28711293]
[1735164914841,0.26333716,698.89,696.59,0.28711293]
[1735164915238,0.28617625,698.87,696.59,0.28711293]
[1735164915441,0.26333716,698.86,696.59,0.28711293]
[1735164915839,0.28618854,698.84,696.59,0.28711293]
[1735164916144,0.26333716,698.83,696.59,0.28711293]
[1735164917544,0.26336435,698.82,696.59,0.28711293]
[1735164917744,0.26336435,698.81,696.59,0.28711293]
[1735164917944,0.26336435,698.8,696.59,0.28711293]
[1735164918141,0.26336435,698.79,696.59,0.28711293]
[1735164918445,0.26336435,698.78,696.59,0.28711293]
[1735164918645,0.26336435,698.77,696.59,0.28711293]
[1735164918841,0.26336435,698.76,696.59,0.28711293]
[1735164919148,0.26336435,698.75,696.59,0.28711293]
[1735164919348,0.26336435,698.74,696.59,0.28711293]
[1735164919545,0.26336435,698.73,696.59,0.28711293]
[1735164919845,0.26336435,698.72,696.59,0.28711293]
[1735164920047,0.26336435,698.71,696.59,0.28711293]
[1735164920248,0.26336435,698.7,696.59,0.28711293]
[1735164920547,0.26336953,698.69,696.59,0.28711293]
[1735164920748,0.26336953,698.68,696.59,0.28711293]
[1735164921048,0.26336953,698.67,696.59,0.28711293]
[1735164921242,0.28618854,698.84,696.59,0.28711293]
[1735164921243,0.26336953,698.66,696.59,0.28711293]
[1735164921445,0.28618854,698.84,696.59,0.28711293]
[1735164921648,0.26336921,698.83,696.59,0.28711293]
[1735164925848,0.28618854,698.84,696.59,0.28711293]
[1735164925849,0.26339442,698.82,696.59,0.28711293]
[1735164926051,0.26339442,698.81,696.59,0.28711293]
[1735164926249,0.26339442,698.8,696.59,0.28711293]
[1735164926451,0.26339442,698.79,696.59,0.28711293]
[1735164926648,0.2633897,698.78,696.59,0.28711293]
[1735164926851,0.2633897,698.77,696.59,0.28711293]
[1735164927047,0.2633897,698.76,696.59,0.28711293]
[1735164927249,0.2633897,698.75,696.59,0.28711293]
[1735164927452,0.2633897,698.74,696.59,0.28711293]
[1735164927652,0.2633897,698.73,696.59,0.28711293]
[1735164927857,0.2633897,698.72,696.59,0.28711293]
[1735164928154,0.2633897,698.71,696.59,0.28711293]
[1735164928357,0.2633897,698.7,696.59,0.28711293]
[1735164928657,0.28618854,698.84,696.59,0.28711293]
[1735164928857,0.26339334,698.83,696.59,0.28711293]
[1735164930255,0.28620082,698.81,696.59,0.28711293]
[1735164930553,0.26339334,698.8,696.59,0.28711293]
[1735164931658,0.28621311,698.78,696.59,0.28711293]
[1735164931856,0.26339334,698.77,696.59,0.28711293]
[1735164932961,0.26339334,698.76,696.59,0.28711293]
[1735164933159,0.26339334,698.75,696.59,0.28711293]
[1735164933353,0.26339334,698.74,696.59,0.28711293]
[1735164933559,1.06536725,698.71,696.66,1.28094218]
[1735164933755,0.26339334,698.7,696.66,1.28094218]
[1735164933957,0.26339334,698.7,696.68,0.28707584]
[1735164934157,0.28625407,698.68,696.68,0.28707584]
[1735164934360,0.26339334,698.67,696.7,1.28094218]
[1735164934559,0.26339334,698.67,696.72,0.28705936]
[1735164935364,0.28626637,698.65,696.72,0.28705936]
[1735164935558,0.26339334,698.64,696.72,0.28705936]
[1735164935762,0.28626637,698.65,696.72,0.28705936]
[1735164946967,0.28626637,698.65,696.72,1.56800154]
[1735164947568,0.28626637,698.65,696.72,0.28705936]
[1735164948367,0.28626637,698.65,696.73,1.28094218]
[1735164948560,0.28626637,698.65,696.75,0.287047]
[1735164949266,0.28626637,698.65,696.77,1.28094218]
[1735164949468,0.28626637,698.65,696.79,0.28703052]
[1735164950163,0.28626637,698.65,696.8,1.28094218]
[1735164950362,0.26335572,698.64,696.82,0.28701816]
[1735164950669,0.28627456,698.63,696.82,0.28701816]
[1735164951064,0.28627456,698.63,697.0,1.28094218]
[1735164951269,0.28627456,698.63,697.01,0.28693992]
[1735164951462,0.26335774,698.62,697.01,0.28693992]
[1735164952068,0.28628276,698.61,697.01,0.28693992]
[1735164954071,0.28628276,698.61,697.01,1.5678821]
[1735164954669,0.28628276,698.61,697.01,0.28693992]
[1735164973187,0.28628276,698.61,697.01,2.97730333]
[1735164973388,0.28628276,698.61,697.02,5.1259727]
[1735164973588,0.28628276,698.61,697.04,0.28692757]
[1735164973983,0.28628276,698.61,697.04,5.41290027]
[1735164974285,0.28628276,698.61,697.05,2.69036341]
[1735164974490,0.28628276,698.61,697.05,5.1259727]
[1735164974689,0.28628276,698.61,697.04,0.28692757]
[1735164974690,0.28628276,698.61,697.06,5.1259727]
[1735164974889,0.28628276,698.61,697.07,5.1259727]
[1735164975090,0.28628276,698.61,697.08,5.1259727]
[1735164975291,0.28628276,698.61,697.09,1.35679258]
[1735164975484,0.28628276,698.61,697.09,3.79240187]
[1735164975684,0.28628276,698.61,697.1,1.35679258]
[1735164975888,0.28628276,698.61,697.12,0.28689465]
[1735164987902,0.28628276,698.61,697.21,1.28094218]
[1735164988901,0.28628276,698.61,697.12,1.56783683]
[1735164989696,0.28628276,698.61,697.12,0.28689465]
[1735165025725,0.26337226,698.6,697.12,0.28689465]
[1735165026123,0.28628276,698.61,697.12,0.28689465]